bitfinex/quotes_BTCUSD_20250602
["timestamp","ask_amount","ask_price","bid_price","bid_amount"]
[1748862446305,0.7645911,104380.0,104370.0,0.35322014]
[1748862446505,0.7645911,104380.0,104370.0,0.38074959]
[1748862446712,0.7645911,104380.0,104370.0,0.35322014]
[1748862447013,0.7645911,104380.0,104370.0,0.36280107]
[1748862447128,0.72904,104380.0,104370.0,0.36280107]
[1748862447331,0.72904,104380.0,104370.0,0.3807491]
[1748862447527,0.72904,104380.0,104370.0,0.37177508]
[1748862447736,0.72904,104380.0,104370.0,0.36158715]
[1748862448048,0.72904,104380.0,104370.0,0.35322023]
[1748862448248,0.72904,104380.0,104370.0,0.36280125]
[1748862448494,0.72904,104380.0,104370.0,0.37177526]
[1748862448740,0.72904,104380.0,104370.0,0.36280125]
[1748862448947,0.72924,104380.0,104370.0,0.38972329]
[1748862449323,0.72924,104380.0,104370.0,0.38972421]
[1748862449492,0.72924,104380.0,104370.0,0.38074989]
[1748862449678,0.72924,104380.0,104370.0,0.38972421]
[1748862449877,0.72924,104380.0,104370.0,0.38014319]
[1748862450289,0.72924,104380.0,104370.0,0.38972421]
[1748862450519,0.72924,104380.0,104370.0,0.37056208]
[1748862450760,0.75576065,104380.0,104370.0,0.37116887]
[1748862450987,0.75576065,104380.0,104370.0,0.15977365]
[1748862451278,0.85161495,104380.0,104370.0,0.15977449]
[1748862451561,0.85161495,104380.0,104370.0,0.15977501]
[1748862451775,0.85161495,104380.0,104370.0,0.13285069]
[1748862451981,0.85161495,104380.0,104370.0,0.15079961]
[1748862452189,0.85161495,104380.0,104370.0,0.13285069]
[1748862452805,0.85161495,104380.0,104370.0,0.15079961]
[1748862453025,0.85161495,104380.0,104370.0,0.13285069]
[1748862453436,0.85161495,104380.0,104370.0,0.33405792]
[1748862453638,0.8250543,104380.0,104370.0,0.33405792]
[1748862453845,0.8250543,104380.0,104370.0,0.1603809]
[1748862454099,0.8250543,104380.0,104370.0,0.14243198]
[1748862454311,0.8250543,104380.0,104370.0,0.15201318]
[1748862454516,0.8250543,104380.0,104370.0,0.14243198]
[1748862454720,0.8250543,104380.0,104370.0,0.16098721]
[1748862454928,0.8250543,104380.0,104370.0,0.14243198]
[1748862455336,0.8250543,104380.0,104370.0,0.15201318]
[1748862455511,0.91382472,104380.0,104370.0,0.15201318]
[1748862455747,0.91382472,104380.0,104370.0,0.15140601]
[1748862455976,0.91382472,104380.0,104370.0,0.16098721]
[1748862456300,0.91382472,104380.0,104370.0,0.15140644]
[1748862456527,0.91382472,104380.0,104370.0,0.17893681]
[1748862456748,0.91382472,104380.0,104370.0,0.37056275]
[1748862457160,0.91382472,104380.0,104370.0,0.34363912]
[1748862457376,0.91382472,104380.0,104370.0,0.37056275]
[1748862457587,0.91382472,104380.0,104370.0,0.15977432]
[1748862457774,0.91382472,104380.0,104370.0,0.15977433]
[1748862458025,0.91382472,104380.0,104370.0,0.14182568]
[1748862458461,0.91382472,104380.0,104370.0,0.33345174]
[1748862458680,0.91382472,104380.0,104370.0,0.1418258]
[1748862458866,0.91382472,104380.0,104370.0,0.15140709]
[1748862459082,0.91382472,104380.0,104370.0,0.1418258]
[1748862459841,0.91382472,104380.0,104370.0,0.15977725]
[1748862460265,0.91382472,104380.0,104370.0,0.13285069]
[1748862460475,0.91382472,104380.0,104370.0,0.15977786]
[1748862460911,0.91382472,104380.0,104370.0,0.14182641]
[1748862461118,0.91382472,104380.0,104370.0,0.14182628]
[1748862461333,0.91382472,104380.0,104370.0,0.15977825]
[1748862461538,0.91382472,104380.0,104370.0,0.14182671]
[1748862462604,0.91382472,104380.0,104370.0,0.14182649]
[1748862462807,0.91382472,104380.0,104370.0,0.10872655]
[1748862463022,0.91382472,104380.0,104370.0,0.09975069]
[1748862463647,0.91382472,104380.0,104370.0,0.1087267]
[1748862463859,0.91382472,104380.0,104370.0,0.09975069]
[1748862464062,0.94259972,104380.0,104370.0,0.09975069]
[1748862464490,0.94259972,104380.0,104370.0,0.11615069]
[1748862464922,0.94259972,104380.0,104370.0,0.09975069]
[1748862465543,0.94259972,104380.0,104370.0,0.10872643]
[1748862465752,0.94259972,104380.0,104370.0,0.10872659]
[1748862466113,0.94259972,104380.0,104370.0,0.10872665]
[1748862466320,0.94259972,104380.0,104370.0,0.12482665]
[1748862466542,0.95714057,104380.0,104370.0,0.09975069]
[1748862468180,0.95714057,104380.0,104370.0,0.10872665]
[1748862468388,0.95714057,104380.0,104370.0,0.09975069]
[1748862471057,0.95714057,104380.0,104370.0,0.11515069]
[1748862472423,0.95714057,104380.0,104370.0,0.13055069]
[1748862476908,0.95714057,104380.0,104370.0,0.09975069]
[1748862477154,0.34,104350.0,104320.0,0.09189937]
[1748862477370,0.3856,104340.0,104320.0,0.26831803]
[1748862477613,0.3856,104340.0,104320.0,0.07660267]
[1748862477842,0.414384,104340.0,104320.0,0.07660267]
[1748862478327,0.5102383,104340.0,104320.0,0.07660267]
[1748862478767,0.5112383,104340.0,104320.0,0.00214583]
[1748862478976,0.56937803,104340.0,104320.0,0.00214583]
[1748862479195,0.56937803,104340.0,104320.0,0.00014583]
[1748862479407,0.57037803,104340.0,104320.0,0.00214583]
[1748862480046,0.58635574,104340.0,104320.0,0.03404583]
[1748862480966,0.4358543,104330.0,104320.0,0.00214583]
[1748862481189,0.03004085,104320.0,104290.0,0.00164]
[1748862481411,0.03004085,104320.0,104260.0,0.01528171]
[1748862481412,0.34,104270.0,104260.0,0.01528171]
[1748862481619,0.01454085,104300.0,104290.0,0.00048567]
[1748862481620,0.65454085,104300.0,104290.0,0.00048567]
[1748862481833,5.40454085,104300.0,104290.0,0.00048567]
[1748862482050,5.79086085,104300.0,104290.0,0.00048567]
[1748862482295,5.91551615,104300.0,104290.0,0.00048567]
[1748862482500,5.91551615,104300.0,104270.0,0.22205602]
[1748862482501,5.05,104290.0,104270.0,0.22205602]
[1748862482718,0.43088,104280.0,104270.0,0.21246591]
[1748862482933,0.43088,104280.0,104270.0,0.20287552]
[1748862483162,0.43088,104280.0,104270.0,0.23164623]
[1748862483387,0.56495245,104280.0,104270.0,0.19180972]
[1748862483607,0.5267343,104280.0,104260.0,0.20812471]
[1748862483825,0.5267343,104280.0,104260.0,0.25199791]
[1748862484300,0.5267343,104280.0,104260.0,0.20812471]
[1748862484505,0.5267343,104280.0,104260.0,0.23689772]
[1748862484807,0.5277343,104280.0,104260.0,0.26248829]
[1748862485023,0.61015573,104280.0,104260.0,0.23371593]
[1748862485253,0.61015573,104280.0,104260.0,0.26248839]
[1748862485473,0.29548,104270.0,104250.0,0.24287518]
[1748862485679,0.30941645,104270.0,104260.0,0.22060187]
[1748862485889,0.32517129,104270.0,104260.0,0.23019281]
[1748862486132,0.31123484,104270.0,104260.0,0.23019226]
[1748862486337,0.31123484,104270.0,104260.0,0.25608302]
[1748862486338,0.01575484,104270.0,104260.0,0.25608302]
[1748862486556,0.01575484,104270.0,104260.0,0.27258302]
[1748862486747,0.75722548,104280.0,104270.0,0.23698024]
[1748862486985,0.03082548,104280.0,104270.0,0.24657008]
[1748862487191,0.12070548,104280.0,104270.0,0.21780011]
[1748862487402,0.19632403,104280.0,104270.0,0.23698006]
[1748862487830,0.19532403,104280.0,104270.0,0.23698006]
[1748862488043,0.19532403,104280.0,104270.0,0.2178002]
[1748862488321,0.19732403,104280.0,104270.0,0.2273905]
[1748862488534,0.19732403,104280.0,104270.0,0.22739059]
[1748862488946,0.21534389,104280.0,104270.0,0.23626284]
[1748862489149,0.21534389,104280.0,104270.0,0.24585314]
[1748862489374,0.21534389,104280.0,104270.0,0.24585293]
[1748862489795,0.21534389,104280.0,104270.0,0.25616084]
[1748862490029,0.13972534,104280.0,104270.0,0.26503288]
[1748862490244,0.13972534,104280.0,104270.0,0.26503276]
[1748862490664,0.13972534,104280.0,104270.0,0.25544292]
[1748862490881,0.13972534,104280.0,104270.0,0.26503276]
[1748862491529,0.04884534,104280.0,104270.0,0.28133517]
[1748862491744,0.13972534,104280.0,104270.0,0.28133516]
[1748862491997,0.04884534,104280.0,104270.0,0.28133516]
[1748862492445,0.004,104280.0,104270.0,0.78156701]
[1748862492872,0.004,104280.0,104270.0,0.83156831]
[1748862493293,0.004,104280.0,104270.0,0.83156765]
[1748862493720,0.002,104280.0,104270.0,1.21836765]
[1748862493935,0.00048504,104300.0,104290.0,0.25193776]
[1748862494153,0.00048504,104300.0,104290.0,0.26081225]
[1748862494557,0.28157846,104320.0,104310.0,0.0095868]
[1748862494822,0.28157846,104320.0,104310.0,4.852e-05]
[1748862494823,0.37743276,104320.0,104310.0,4.852e-05]
[1748862495767,0.38443276,104320.0,104310.0,4.852e-05]
[1748862495979,0.39143276,104320.0,104310.0,4.852e-05]
[1748862496422,0.40596253,104320.0,104310.0,4.852e-05]
[1748862496847,0.4344595,104320.0,104310.0,4.852e-05]
[1748862498415,0.51478455,104320.0,104310.0,4.852e-05]
[1748862498647,0.4344595,104320.0,104310.0,4.852e-05]
[1748862500195,0.44900035,104320.0,104310.0,4.852e-05]
[1748862503115,0.42050338,104320.0,104310.0,4.852e-05]
[1748862503580,0.42050338,104320.0,104310.0,0.00896207]
[1748862503791,0.49943282,104320.0,104310.0,0.00896207]
[1748862503994,0.49943282,104320.0,104310.0,0.00898725]
[1748862504425,0.49943282,104320.0,104310.0,4.852e-05]
[1748862505099,0.49943282,104320.0,104310.0,0.00898725]
[1748862505299,0.49943282,104320.0,104310.0,4.852e-05]
[1748862505503,0.49943282,104320.0,104310.0,0.00919304]
[1748862508077,0.42050338,104320.0,104310.0,0.00919304]
[1748862508526,0.42050338,104320.0,104310.0,0.01813177]
[1748862508743,0.51142407,104320.0,104310.0,0.20986794]
[1748862508979,0.51142407,104320.0,104310.0,0.01813177]
[1748862509179,0.51142407,104320.0,104310.0,0.01813175]
[1748862510388,0.51142407,104320.0,104310.0,0.00919304]
[1748862510608,0.51142407,104320.0,104310.0,0.01814302]
[1748862510801,0.51142407,104320.0,104310.0,0.00919304]
[1748862511066,0.56140938,104320.0,104310.0,0.00919304]
[1748862511469,0.56140938,104320.0,104310.0,0.01814269]
[1748862512009,0.56140938,104320.0,104310.0,0.00919304]
[1748862512217,0.21526407,104320.0,104310.0,0.01814269]
[1748862512425,0.51142407,104320.0,104310.0,0.01814269]
[1748862512626,0.51142407,104320.0,104310.0,0.01814274]
[1748862513048,0.51142407,104320.0,104310.0,0.00919304]
[1748862513253,0.51142407,104320.0,104310.0,0.01816587]
[1748862513459,0.51142407,104320.0,104310.0,0.01880364]
[1748862513685,0.12438407,104320.0,104310.0,0.21053972]
[1748862513889,0.12438407,104320.0,104310.0,0.27056138]
[1748862513890,0.55602407,104320.0,104310.0,0.27056138]
[1748862514097,0.55602407,104320.0,104310.0,0.25202625]
[1748862514310,0.55602407,104320.0,104310.0,0.27056139]
[1748862514514,0.55602407,104320.0,104310.0,0.2801478]
[1748862514761,0.55602407,104320.0,104310.0,0.27119931]
[1748862514972,0.54902407,104320.0,104310.0,0.26161287]
[1748862515198,0.54202407,104320.0,104310.0,0.26161287]
[1748862515399,0.55102407,104320.0,104310.0,0.26161287]
[1748862515802,0.55102407,104320.0,104310.0,0.280148]
[1748862516044,0.54602407,104320.0,104310.0,0.28078546]
[1748862516211,0.55002407,104320.0,104310.0,0.28973935]
[1748862516600,0.55002407,104320.0,104310.0,0.28078491]
[1748862517228,0.55002407,104320.0,104310.0,0.26161932]
[1748862517468,0.55002407,104320.0,104310.0,0.26098732]
[1748862518104,0.55002407,104320.0,104310.0,0.26098694]
[1748862518593,0.55002407,104320.0,104310.0,0.26099023]
[1748862520004,0.55002407,104320.0,104310.0,0.25141093]
[1748862520153,0.55002407,104320.0,104310.0,0.26099746]
[1748862520564,0.55002407,104320.0,104310.0,0.25141093]
[1748862520815,0.55002407,104320.0,104310.0,0.2705839]
[1748862521228,0.55002407,104320.0,104310.0,0.26101015]
[1748862521397,0.55002407,104320.0,104310.0,0.26100968]
[1748862521804,0.55002407,104320.0,104310.0,0.25142315]
[1748862522001,0.55002407,104320.0,104310.0,0.27059602]
[1748862522208,0.55002407,104320.0,104310.0,0.27059612]
[1748862522372,0.55002407,104320.0,104310.0,0.2706095]
[1748862523023,0.55002407,104320.0,104310.0,0.2706089]
[1748862523648,0.55002407,104320.0,104310.0,0.2706086]
[1748862523807,0.55002407,104320.0,104310.0,0.26163201]
[1748862524027,0.55002407,104320.0,104310.0,0.28019494]
[1748862524314,0.55002407,104320.0,104310.0,0.28019496]
[1748862524899,0.55002407,104320.0,104310.0,0.2897812]
[1748862524900,0.45416977,104320.0,104310.0,0.2897812]
[1748862525116,0.45416977,104320.0,104310.0,0.35831493]
[1748862525296,0.02252977,104320.0,104310.0,0.28081029]
[1748862526207,0.01452977,104320.0,104310.0,0.28081029]
[1748862526420,0.01652977,104320.0,104310.0,0.28081029]
[1748862526631,0.002,104320.0,104310.0,0.28081029]
[1748862527046,0.01680118,104320.0,104310.0,0.28978635]
[1748862527247,0.01680118,104320.0,104310.0,0.28081029]
[1748862527454,0.01680118,104320.0,104310.0,0.28978635]
[1748862527664,0.01980118,104320.0,104310.0,0.29078635]
[1748862528086,0.01980118,104320.0,104310.0,0.28181029]
[1748862528292,0.01980118,104320.0,104310.0,0.29078635]
[1748862528705,0.01980118,104320.0,104310.0,0.29078144]
[1748862529758,0.01980118,104320.0,104310.0,0.28181029]
[1748862529962,0.01980118,104320.0,104310.0,0.29078144]
[1748862530234,0.01980118,104320.0,104310.0,0.28181029]
[1748862530444,0.01980118,104320.0,104310.0,0.29077859]
[1748862531469,0.01980118,104320.0,104310.0,0.28181029]
[1748862531692,0.01980118,104320.0,104310.0,0.29077856]
[1748862531904,0.01980118,104320.0,104310.0,0.29077678]
[1748862532533,0.01980118,104320.0,104310.0,0.3686259]
[1748862532750,0.01980118,104320.0,104310.0,0.35943239]
[1748862532960,0.01980118,104320.0,104310.0,0.35964525]
[1748862533170,0.01980118,104320.0,104310.0,0.36861065]
[1748862533375,0.01980118,104320.0,104310.0,0.35964525]
[1748862533581,0.01980118,104320.0,104310.0,0.28179613]
[1748862534312,0.01980118,104320.0,104310.0,0.29076144]
[1748862534550,0.01980118,104320.0,104310.0,0.28179613]
[1748862535023,0.01980118,104320.0,104310.0,0.38661564]
[1748862535244,0.01980118,104320.0,104310.0,0.37765043]
[1748862535907,0.01980118,104320.0,104310.0,0.38661543]
[1748862536112,0.01980118,104320.0,104310.0,0.37765043]
[1748862536394,0.01980118,104320.0,104310.0,0.47016165]
[1748862536625,0.005,104320.0,104310.0,0.47015959]
[1748862537068,0.005,104320.0,104310.0,0.47912407]
[1748862537296,0.005,104320.0,104310.0,0.47015959]
[1748862537523,0.005,104320.0,104310.0,0.683173]
[1748862537772,0.005,104320.0,104310.0,0.67420837]
[1748862537964,0.005,104320.0,104310.0,0.68317297]
[1748862538524,0.005,104320.0,104310.0,0.68317282]
[1748862538758,0.005,104320.0,104310.0,0.77568404]
[1748862538950,0.005,104320.0,104310.0,0.68317282]
[1748862539201,0.005,104320.0,104310.0,0.67420837]
[1748862539420,0.005,104320.0,104310.0,0.68316935]
[1748862540096,0.005,104320.0,104310.0,0.68316777]
[1748862540319,0.005,104320.0,104310.0,0.67420837]
[1748862540531,0.005,104320.0,104310.0,0.68316777]
[1748862540745,0.005,104320.0,104310.0,0.68332778]
[1748862540958,0.005,104320.0,104310.0,0.775839]
[1748862541180,0.005,104320.0,104310.0,0.68360884]
[1748862541699,0.005,104320.0,104310.0,0.67464837]
[1748862542384,0.005,104320.0,104310.0,0.68360883]
[1748862542607,0.005,104320.0,104310.0,0.6836074]
[1748862542823,0.005,104320.0,104310.0,0.67464837]
[1748862543032,0.005,104320.0,104310.0,0.77612035]
[1748862543883,0.005,104320.0,104310.0,0.77611948]
[1748862544098,0.005,104320.0,104310.0,0.76694219]
[1748862544307,0.005,104320.0,104310.0,0.76715817]
[1748862544934,0.005,104320.0,104310.0,0.77611814]
[1748862545801,0.005,104320.0,104310.0,0.77611779]
[1748862546637,0.005,104320.0,104310.0,0.68360657]
[1748862546856,0.005,104320.0,104310.0,0.68336657]
[1748862547091,0.005,104320.0,104310.0,0.6833678]
[1748862547306,0.005,104320.0,104310.0,0.68336766]
[1748862547742,0.005,104320.0,104310.0,0.38660766]
[1748862547967,0.005,104320.0,104310.0,0.68328766]
[1748862548189,0.005,104320.0,104310.0,0.67432818]
[1748862548618,0.005,104320.0,104310.0,0.7668394]
[1748862549772,0.005,104320.0,104310.0,0.67432818]
[1748862550867,0.005,104320.0,104310.0,0.66515108]
[1748862551080,0.005,104320.0,104310.0,0.67433331]
[1748862551300,0.005,104320.0,104310.0,0.7909929]
[1748862551516,0.005,104320.0,104310.0,0.67429331]
[1748862552347,0.003,104320.0,104310.0,0.67429331]
[1748862552960,0.01344884,104330.0,104320.0,0.25367434]
[1748862553172,0.01344884,104330.0,104320.0,0.27182136]
[1748862553386,0.4118,104350.0,104330.0,0.22044257]
[1748862553605,0.46571293,104350.0,104330.0,0.2296248]
[1748862553815,0.46571293,104350.0,104330.0,0.23859268]
[1748862554026,0.46571293,104350.0,104330.0,0.23859273]
[1748862554234,0.55751293,104350.0,104330.0,0.24817705]
[1748862554446,0.55751293,104350.0,104330.0,0.23920921]
[1748862554689,0.57127995,104350.0,104330.0,0.23859273]
[1748862554878,0.57627995,104350.0,104330.0,0.23001419]
[1748862555096,0.57627995,104350.0,104330.0,0.23062499]
[1748862555317,0.58127995,104350.0,104330.0,0.2412094]
[1748862555532,0.67713425,104350.0,104330.0,0.23162517]
[1748862555977,0.67713425,104350.0,104330.0,0.24059888]
[1748862556188,0.67713425,104350.0,104330.0,0.23162526]
[1748862556400,0.016,104340.0,104330.0,0.23162526]
[1748862556613,0.08377343,104340.0,104330.0,0.21245588]
[1748862556882,0.016,104340.0,104330.0,0.23162517]
[1748862557313,0.016,104340.0,104330.0,0.23062517]
[1748862557528,0.004,104340.0,104330.0,0.24918331]
[1748862557740,0.004,104340.0,104330.0,0.23001439]
[1748862557955,0.009,104340.0,104330.0,0.24059889]
[1748862558168,0.009,104340.0,104330.0,0.23101438]
[1748862558375,0.025,104340.0,104330.0,0.23101438]
[1748862558618,0.025,104340.0,104330.0,0.24059907]
[1748862559270,0.025,104340.0,104330.0,0.02015595]
[1748862559271,0.54502772,104340.0,104330.0,0.02015595]
[1748862559488,0.54502772,104340.0,104330.0,0.01097533]
[1748862559700,0.54502772,104340.0,104330.0,0.002]
[1748862559920,0.54502772,104340.0,104330.0,0.19369941]
[1748862559921,0.4773543,104340.0,104330.0,0.19369941]
[1748862560131,0.4773543,104340.0,104330.0,0.202892]
[1748862560350,0.4773543,104340.0,104330.0,0.22145331]
[1748862560558,0.4608543,104340.0,104330.0,0.21247687]
[1748862561027,0.4608543,104340.0,104330.0,0.22145341]
[1748862561672,0.4608543,104340.0,104330.0,0.21186854]
[1748862561882,0.349,104340.0,104330.0,0.22206165]
[1748862562769,0.349,104340.0,104330.0,0.21247907]
[1748862562984,0.349,104340.0,104330.0,0.24003155]
[1748862563186,0.349,104340.0,104330.0,0.23164836]
[1748862563423,0.349,104340.0,104330.0,0.25021656]
[1748862563631,0.349,104340.0,104330.0,0.24123277]
[1748862564220,0.36500292,104340.0,104330.0,0.22206385]
[1748862564471,0.38150292,104340.0,104330.0,0.22206385]
[1748862564697,0.38150292,104340.0,104330.0,0.24901522]
[1748862564905,0.38150292,104340.0,104330.0,0.24961508]
[1748862565086,0.38150292,104340.0,104330.0,0.23942888]
[1748862565288,0.41124377,104340.0,104330.0,0.0381446]
[1748862565521,0.41124377,104340.0,104330.0,0.01098341]
[1748862565522,0.50709807,104340.0,104330.0,0.01098341]
[1748862565746,0.36974085,104330.0,104310.0,4.852e-05]
[1748862565988,0.0317,104320.0,104310.0,0.02721768]
[1748862566198,0.0317,104320.0,104310.0,0.00924756]
[1748862566669,0.0317,104320.0,104310.0,4.852e-05]
[1748862566881,5.53209515,104320.0,104310.0,4.852e-05]
[1748862567081,5.62460637,104320.0,104310.0,4.852e-05]
[1748862568700,5.62660637,104320.0,104310.0,4.852e-05]
[1748862569349,5.62860637,104320.0,104310.0,4.852e-05]
[1748862571718,0.78341515,104320.0,104310.0,4.852e-05]
[1748862575031,0.76821515,104320.0,104310.0,4.852e-05]
[1748862575271,0.8457143,104320.0,104310.0,4.852e-05]
[1748862575510,0.8457143,104320.0,104310.0,0.2013714]
[1748862576546,0.8457143,104320.0,104310.0,0.21095802]
[1748862576782,0.93822552,104320.0,104310.0,0.20137149]
[1748862577020,0.93822552,104320.0,104310.0,0.2109582]
[1748862578232,0.92172552,104320.0,104310.0,0.2109582]
[1748862578825,0.344,104320.0,104310.0,0.2451308]
[1748862579001,0.004,104320.0,104310.0,0.2608308]
[1748862579438,0.004,104320.0,104310.0,0.26976995]
[1748862579660,0.004,104320.0,104310.0,0.2608308]
[1748862580357,0.004,104320.0,104310.0,0.26977361]
[1748862581366,0.004,104320.0,104310.0,0.2608308]
[1748862581585,0.004,104320.0,104310.0,0.26977364]
[1748862581800,0.004,104320.0,104310.0,0.26977363]
[1748862582009,0.004,104320.0,104310.0,0.2608308]
[1748862582676,0.004,104320.0,104310.0,0.26977652]
[1748862582902,0.004,104320.0,104310.0,0.2608308]
[1748862583405,0.004,104320.0,104310.0,0.26977652]
[1748862583625,0.004,104320.0,104310.0,0.2608308]
[1748862586059,0.004,104320.0,104310.0,0.26977699]
[1748862586273,0.004,104320.0,104310.0,0.26977698]
[1748862586546,0.004,104320.0,104310.0,0.26083089]
[1748862586759,0.004,104320.0,104310.0,0.27041705]
[1748862587186,0.004,104320.0,104310.0,0.27936323]
[1748862587863,0.004,104320.0,104310.0,0.27041705]
[1748862588517,0.004,104320.0,104310.0,0.26083098]
[1748862588741,0.004,104320.0,104310.0,0.27041723]
[1748862588951,0.004,104320.0,104310.0,0.27041659]
[1748862590250,0.004,104320.0,104310.0,0.27936971]
[1748862590456,0.004,104320.0,104310.0,0.27041659]
[1748862590664,0.004,104320.0,104310.0,0.26978354]
[1748862590868,0.004,104320.0,104310.0,0.26083043]
[1748862591075,0.004,104320.0,104310.0,0.27041659]
[1748862591280,0.004,104320.0,104310.0,0.27936971]
[1748862591485,0.004,104320.0,104310.0,0.27041659]
[1748862591665,0.004,104320.0,104310.0,0.27937238]
[1748862592805,0.004,104320.0,104310.0,0.28854951]
[1748862593018,0.004,104320.0,104310.0,0.30646386]
[1748862593257,0.004,104320.0,104310.0,0.3064651]
[1748862593463,0.004,104320.0,104310.0,0.30646503]
[1748862593673,0.004,104320.0,104310.0,0.29750793]
[1748862593877,0.004,104320.0,104310.0,0.30646503]
[1748862594144,0.004,104320.0,104310.0,0.30646582]
[1748862594975,0.344,104320.0,104310.0,0.30647941]
[1748862595539,0.344,104320.0,104310.0,0.40233328]
[1748862595764,0.004,104320.0,104310.0,0.80671032]
[1748862595972,0.004,104320.0,104310.0,0.77982636]
[1748862596213,0.004,104320.0,104310.0,0.40233106]
[1748862596358,0.004,104320.0,104310.0,0.80670861]
[1748862596741,0.004,104320.0,104310.0,0.46796003]
[1748862596941,0.004,104320.0,104310.0,0.40231741]
[1748862597157,0.002,104320.0,104310.0,0.39336125]
[1748862597363,0.003,104320.0,104310.0,0.40231748]
[1748862597573,0.001,104320.0,104310.0,0.37544881]
[1748862597788,0.002,104320.0,104310.0,0.37544881]
[1748862598187,0.002,104320.0,104310.0,0.79773881]
[1748862598405,0.002,104320.0,104310.0,0.38440623]
[1748862598623,0.002,104320.0,104310.0,0.49483229]
[1748862598846,0.002,104320.0,104310.0,0.46796003]
[1748862599075,0.002,104320.0,104310.0,0.68968365]
[1748862599293,0.002,104320.0,104310.0,0.67176881]
[1748862599991,0.002,104320.0,104310.0,0.68073024]
[1748862600214,0.002,104320.0,104310.0,0.6986531]
[1748862600473,0.002,104320.0,104310.0,0.68073024]
[1748862600697,0.002,104320.0,104310.0,0.67176881]
[1748862600917,0.002,104320.0,104310.0,0.68073024]
[1748862601134,0.002,104320.0,104310.0,0.68968946]
[1748862601594,0.002,104320.0,104310.0,0.69866001]
[1748862601863,0.002,104320.0,104310.0,0.69867824]
[1748862602303,0.002,104320.0,104310.0,1.19556701]
[1748862602974,0.002,104320.0,104310.0,1.1955665]
[1748862603168,0.002,104320.0,104310.0,1.6144678]
[1748862603427,0.02,104350.0,104340.0,0.22043208]
[1748862603646,0.02,104350.0,104340.0,0.40313042]
[1748862603872,0.02,104350.0,104340.0,0.4120936]
[1748862604304,0.02,104350.0,104340.0,0.41208877]
[1748862604974,0.02,104350.0,104340.0,0.81643285]
[1748862605186,0.021,104350.0,104340.0,0.81643285]
[1748862605398,0.021,104350.0,104340.0,0.81643085]
[1748862605611,0.021,104350.0,104340.0,0.81643065]
[1748862606047,0.021,104350.0,104340.0,0.79853911]
[1748862606258,0.021,104350.0,104340.0,0.81637011]
[1748862607126,0.022,104350.0,104340.0,0.79057551]
[1748862607127,0.022,104350.0,104340.0,1.32796851]
[1748862607348,0.022,104350.0,104340.0,0.92358969]
[1748862607567,0.022,104350.0,104340.0,0.89679636]
[1748862607790,0.022,104350.0,104340.0,1.31010493]
[1748862608012,0.021,104350.0,104340.0,1.30908339]
[1748862608239,0.021,104350.0,104340.0,1.64015266]
[1748862608460,0.021,104350.0,104340.0,1.6500821]
[1748862608727,0.022,104350.0,104340.0,1.64215266]
[1748862609226,0.022,104350.0,104340.0,1.14609511]
[1748862609461,0.022,104350.0,104340.0,0.74171756]
[1748862609692,0.021,104350.0,104340.0,1.96402369]
[1748862609917,0.022,104350.0,104340.0,2.36802398]
[1748862610137,0.022,104350.0,104340.0,1.96364641]
[1748862610374,0.321,104390.0,104380.0,0.2203476]
[1748862610575,0.321,104390.0,104380.0,0.26345944]
[1748862611081,0.33447501,104390.0,104380.0,0.26345944]
[1748862611584,0.33647501,104390.0,104380.0,0.26445944]
[1748862611818,0.01747501,104390.0,104380.0,0.29845944]
[1748862613497,0.01747501,104390.0,104380.0,0.2553476]
[1748862614732,0.01747501,104390.0,104380.0,0.2223476]
[1748862615514,0.01747501,104390.0,104380.0,0.21276787]
[1748862615759,0.03407501,104390.0,104380.0,0.21276787]
[1748862615959,0.01747501,104390.0,104380.0,0.2223476]
[1748862618366,0.01747501,104390.0,104380.0,0.29827136]
[1748862620286,0.35747501,104390.0,104380.0,0.29827136]
[1748862622696,0.35747501,104390.0,104380.0,0.2378476]
[1748862622851,0.18744861,104390.0,104380.0,0.2378476]
[1748862623051,0.09164,104400.0,104390.0,0.20116869]
[1748862623052,0.12314,104400.0,104390.0,0.20116869]
[1748862623263,0.12314,104400.0,104390.0,0.21074805]
[1748862623470,0.12314,104400.0,104390.0,0.20116869]
[1748862623675,0.12314,104400.0,104390.0,0.21074805]
[1748862624499,0.12714,104400.0,104390.0,0.22132732]
[1748862624729,0.12714,104400.0,104390.0,0.25660751]
[1748862624928,0.46714,104400.0,104390.0,0.25660751]
[1748862625242,0.47014,104400.0,104390.0,0.25760751]
[1748862625453,0.47014,104400.0,104390.0,0.26452805]
[1748862625454,0.347,104400.0,104390.0,0.26452805]
[1748862625667,0.347,104400.0,104390.0,0.28368614]
[1748862625878,0.347,104400.0,104390.0,0.29326505]
[1748862626060,0.347,104400.0,104390.0,0.24840559]
[1748862626317,0.347,104400.0,104390.0,0.22232668]
[1748862626749,0.3787,104400.0,104390.0,0.20316869]
[1748862626970,0.36006867,104400.0,104390.0,0.26300595]
[1748862627185,0.36006867,104400.0,104390.0,0.24780605]
[1748862627599,0.36006867,104400.0,104390.0,0.29422538]
[1748862627816,0.36006867,104400.0,104390.0,0.30380419]
[1748862629338,0.36006867,104400.0,104390.0,0.24148486]
[1748862630915,0.36006867,104400.0,104390.0,0.002]
[1748862631135,0.48802297,104400.0,104390.0,0.002]
[1748862631579,0.50256382,104400.0,104390.0,0.002]
[1748862632467,5.05,104380.0,104340.0,0.26387275]
[1748862632691,0.0159,104360.0,104350.0,0.21082738]
[1748862633131,0.0159,104360.0,104350.0,0.24791001]
[1748862633349,0.368778,104370.0,104360.0,0.21080817]
[1748862633595,0.0309,104390.0,104370.0,0.20120659]
[1748862633816,0.09096,104390.0,104380.0,0.20118786]
[1748862634041,0.09096,104390.0,104380.0,0.2203476]
[1748862634042,0.119731,104390.0,104380.0,0.2203476]
[1748862634263,0.09096,104390.0,104380.0,0.2887908]
[1748862634474,0.36996867,104400.0,104390.0,0.22032696]
[1748862634475,0.47779567,104400.0,104390.0,0.22032696]
[1748862634688,0.13779567,104400.0,104390.0,0.23948477]
[1748862634935,0.47379567,104400.0,104390.0,0.23887176]
[1748862635152,0.44502867,104400.0,104390.0,0.22990596]
[1748862635362,0.01406867,104400.0,104390.0,0.29638703]
[1748862635572,0.01406867,104400.0,104390.0,0.32788553]
[1748862635893,0.01906867,104400.0,104390.0,0.30099028]
[1748862636107,0.01906867,104400.0,104390.0,0.32790514]
[1748862636331,0.01906867,104400.0,104390.0,0.29733963]
[1748862636532,0.01906867,104400.0,104390.0,0.23710273]
[1748862636732,0.01906867,104400.0,104390.0,0.25626063]
[1748862636939,0.01906867,104400.0,104390.0,0.2383162]